[Event "Live Chess"]
[Site "Chess.com"]
[Date "2024.06.01"]
[Round "-"]
[White "koekoekoe"]
[Black "KeithArkell"]
[Result "0-1"]
[WhiteElo "2007"]
[BlackElo "2437"]
[TimeControl "300"]
[EndTime "14:25:45 PDT"]
[Termination "KeithArkell won by checkmate"]

1. d4 {[%clk 0:04:59.7]} 1... e6 {[%clk 0:04:58.4]} 2. Bf4 {[%clk 0:04:59.3]}
2... Nf6 {[%clk 0:04:56.5]} 3. e3 {[%clk 0:04:58.7]} 3... c5 {[%clk 0:04:56]} 4.
c3 {[%clk 0:04:57.9]} 4... cxd4 {[%clk 0:04:55.5]} 5. exd4 {[%clk 0:04:57.4]}
5... Be7 {[%clk 0:04:54.8]} 6. Nf3 {[%clk 0:04:56.9]} 6... b6 {[%clk 0:04:54.5]}
7. Bb5 {[%clk 0:04:56]} 7... Ba6 {[%clk 0:04:53.1]} 8. Bxa6 {[%clk 0:04:54.5]}
8... Nxa6 {[%clk 0:04:52.1]} 9. O-O {[%clk 0:04:54.4]} 9... Nc7 {[%clk
0:04:51.4]} 10. Nbd2 {[%clk 0:04:53.3]} 10... d6 {[%clk 0:04:50.9]} 11. Re1
{[%clk 0:04:52.5]} 11... b5 {[%clk 0:04:50.4]} 12. h3 {[%clk 0:04:51.6]} 12...
O-O {[%clk 0:04:49.2]} 13. Qb3 {[%clk 0:04:50.7]} 13... Rb8 {[%clk 0:04:46.4]}
14. Ne4 {[%clk 0:04:46.6]} 14... Nxe4 {[%clk 0:04:45]} 15. Rxe4 {[%clk
0:04:46.5]} 15... Nd5 {[%clk 0:04:44.3]} 16. Bg3 {[%clk 0:04:43.9]} 16... Qc7
{[%clk 0:04:42.6]} 17. Rae1 {[%clk 0:04:40.5]} 17... Rfc8 {[%clk 0:04:39.2]} 18.
a3 {[%clk 0:04:26.1]} 18... a5 {[%clk 0:04:37.9]} 19. Nd2 {[%clk 0:04:18]} 19...
h6 {[%clk 0:04:34.2]} 20. f4 {[%clk 0:04:11.3]} 20... Nf6 {[%clk 0:04:27.6]} 21.
R4e2 {[%clk 0:04:07.2]} 21... d5 {[%clk 0:04:26.7]} 22. Kh2 {[%clk 0:03:59.3]}
22... Bd6 {[%clk 0:04:26]} 23. Rf1 {[%clk 0:03:47.2]} 23... Nh5 {[%clk
0:04:24.2]} 24. Ref2 {[%clk 0:03:40.7]} 24... Nxg3 {[%clk 0:04:20.8]} 25. Kxg3
{[%clk 0:03:39.9]} 25... g5 {[%clk 0:04:20.1]} 26. Nf3 {[%clk 0:03:26.2]} 26...
Bxf4+ {[%clk 0:04:18.8]} 27. Kg4 {[%clk 0:03:25.8]} 27... f5+ {[%clk 0:04:17.3]}
28. Kh5 {[%clk 0:03:21.4]} 28... Kg7 {[%clk 0:04:16.6]} 29. Nxg5 {[%clk
0:03:14.2]} 29... hxg5 {[%clk 0:04:15]} 30. Rxf4 {[%clk 0:03:08.7]} 30... Rh8+
{[%clk 0:04:13.1]} 31. Kxg5 {[%clk 0:03:08.2]} 31... Qe7# {[%clk 0:04:12.3]} 0-1

[Event "Live Chess"]
[Site "Chess.com"]
[Date "2024.06.01"]
[Round "-"]
[White "Duke_of_Bebington"]
[Black "degringolade64"]
[Result "0-1"]
[WhiteElo "1635"]
[BlackElo "2146"]
[TimeControl "300"]
[EndTime "14:26:09 PDT"]
[Termination "degringolade64 won on time"]

1. e4 {[%clk 0:04:58.1]} 1... c6 {[%clk 0:04:58.4]} 2. d4 {[%clk 0:04:56.8]}
2... d5 {[%clk 0:04:57.5]} 3. e5 {[%clk 0:04:56.4]} 3... Bf5 {[%clk 0:04:55.8]}
4. g4 {[%clk 0:04:55.4]} 4... Be4 {[%clk 0:04:54.1]} 5. f3 {[%clk 0:04:53.8]}
5... Bg6 {[%clk 0:04:53.1]} 6. h4 {[%clk 0:04:53.4]} 6... h5 {[%clk 0:04:50.9]}
7. e6 {[%clk 0:04:50.6]} 7... Qd6 {[%clk 0:04:48.8]} 8. exf7+ {[%clk 0:04:36]}
8... Bxf7 {[%clk 0:04:48.7]} 9. Ne2 {[%clk 0:04:34.6]} 9... hxg4 {[%clk
0:04:45.5]} 10. fxg4 {[%clk 0:04:32.9]} 10... Nd7 {[%clk 0:04:43.3]} 11. Nbc3
{[%clk 0:04:23.1]} 11... e5 {[%clk 0:04:25.2]} 12. dxe5 {[%clk 0:04:16.2]} 12...
Nxe5 {[%clk 0:04:25.1]} 13. Bg2 {[%clk 0:03:34.7]} 13... Nf6 {[%clk 0:04:16.2]}
14. Bg5 {[%clk 0:03:28.7]} 14... O-O-O {[%clk 0:03:58]} 15. Qd4 {[%clk
0:03:22.8]} 15... Re8 {[%clk 0:03:44.8]} 16. O-O-O {[%clk 0:03:07.3]} 16... Qc5
{[%clk 0:03:35.7]} 17. Rhf1 {[%clk 0:02:39.5]} 17... Nexg4 {[%clk 0:02:55.8]}
18. Bxf6 {[%clk 0:02:21.6]} 18... Nxf6 {[%clk 0:02:53.1]} 19. Bh3+ {[%clk
0:02:19.1]} 19... Be6 {[%clk 0:02:50.5]} 20. Bxe6+ {[%clk 0:02:17]} 20... Rxe6
{[%clk 0:02:49.2]} 21. Qf4 {[%clk 0:01:54]} 21... Qe3+ {[%clk 0:02:33.6]} 22.
Qxe3 {[%clk 0:01:51.5]} 22... Rxe3 {[%clk 0:02:33.5]} 23. Nf4 {[%clk 0:01:45.6]}
23... Bd6 {[%clk 0:02:16.1]} 24. Ng6 {[%clk 0:01:43.2]} 24... Rhe8 {[%clk
0:02:10.1]} 25. h5 {[%clk 0:01:22.2]} 25... Nxh5 {[%clk 0:01:57.4]} 26. Rf7
{[%clk 0:01:19.7]} 26... Bb4 {[%clk 0:01:45.5]} 27. Rdf1 {[%clk 0:01:00.2]}
27... Bxc3 {[%clk 0:01:41.8]} 28. bxc3 {[%clk 0:00:58.6]} 28... Re1+ {[%clk
0:01:40.8]} 29. Rxe1 {[%clk 0:00:56.1]} 29... Rxe1+ {[%clk 0:01:40.7]} 30. Kd2
{[%clk 0:00:55.4]} 30... Rg1 {[%clk 0:01:31.9]} 31. Ne7+ {[%clk 0:00:49.3]}
31... Kd8 {[%clk 0:01:29.8]} 32. Nf5 {[%clk 0:00:48.1]} 32... g5 {[%clk
0:01:21.9]} 33. Rg7 {[%clk 0:00:38.9]} 33... Nf4 {[%clk 0:01:13.5]} 34. Nd6
{[%clk 0:00:33.2]} 34... Rg2+ {[%clk 0:00:48.9]} 35. Kc1 {[%clk 0:00:31.4]}
35... Ne6 {[%clk 0:00:44.5]} 36. Nxb7+ {[%clk 0:00:18.8]} 36... Kc8 {[%clk
0:00:41.1]} 37. Re7 {[%clk 0:00:17.9]} 37... g4 {[%clk 0:00:35.3]} 38. Rxe6
{[%clk 0:00:16.3]} 38... Kxb7 {[%clk 0:00:33.8]} 39. Rg6 {[%clk 0:00:15.9]}
39... g3 {[%clk 0:00:32.6]} 40. Kb2 {[%clk 0:00:14.7]} 40... Rg1 {[%clk
0:00:31.8]} 41. Ka3 {[%clk 0:00:14.2]} 41... g2 {[%clk 0:00:31.1]} 42. Rg7+
{[%clk 0:00:11.8]} 42... Kb6 {[%clk 0:00:30.6]} 43. Rg6 {[%clk 0:00:10.9]} 43...
a5 {[%clk 0:00:29.5]} 44. Rg7 {[%clk 0:00:09.2]} 44... Kc5 {[%clk 0:00:28.3]}
45. Rg4 {[%clk 0:00:07.8]} 45... Kb5 {[%clk 0:00:21]} 46. Rg5 {[%clk 0:00:06.4]}
46... Kc5 {[%clk 0:00:18.7]} 47. Rg4 {[%clk 0:00:05.9]} 47... Kd6 {[%clk
0:00:16.7]} 48. Rg5 {[%clk 0:00:05.3]} 48... Ke6 {[%clk 0:00:15.8]} 49. Rg6+
{[%clk 0:00:05]} 49... Kf5 {[%clk 0:00:15.1]} 50. Rg8 {[%clk 0:00:04.1]} 50...
Kf4 {[%clk 0:00:13.3]} 51. Rg7 {[%clk 0:00:02.7]} 51... Kf3 {[%clk 0:00:11]} 52.
Rg8 {[%clk 0:00:02.6]} 52... Re1 {[%clk 0:00:08.7]} 53. Rf8+ {[%clk 0:00:02.5]}
53... Ke2 {[%clk 0:00:07.5]} 54. Rg8 {[%clk 0:00:01.5]} 54... Kf1 {[%clk
0:00:06.1]} 55. Rf8+ {[%clk 0:00:01.4]} 55... Kg1 {[%clk 0:00:05.3]} 56. Rg8
{[%clk 0:00:01.3]} 56... Kh1 {[%clk 0:00:04.2]} 57. Rh8+ {[%clk 0:00:01.2]}
57... Kg1 {[%clk 0:00:03.5]} 58. Rg8 {[%clk 0:00:00.9]} 58... Re2 {[%clk
0:00:02.7]} 0-1

[Event "Live Chess"]
[Site "Chess.com"]
[Date "2024.06.01"]
[Round "-"]
[White "WorcesterYork"]
[Black "booktrunk"]
[Result "1-0"]
[WhiteElo "2491"]
[BlackElo "1410"]
[TimeControl "300"]
[EndTime "14:26:16 PDT"]
[Termination "WorcesterYork won by resignation"]

1. e4 {[%clk 0:04:57.5]} 1... b6 {[%clk 0:04:56.7]} 2. d4 {[%clk 0:04:56.6]}
2... Bb7 {[%clk 0:04:50.8]} 3. Nc3 {[%clk 0:04:56.5]} 3... e6 {[%clk 0:04:43.5]}
4. Bd3 {[%clk 0:04:56.4]} 4... h6 {[%clk 0:04:41.8]} 5. Nge2 {[%clk 0:04:54.1]}
5... a5 {[%clk 0:04:39.7]} 6. O-O {[%clk 0:04:52.9]} 6... Ba6 {[%clk 0:04:38.9]}
7. f4 {[%clk 0:04:52]} 7... Bxd3 {[%clk 0:04:37.9]} 8. Qxd3 {[%clk 0:04:50.9]}
8... Nf6 {[%clk 0:04:34.5]} 9. f5 {[%clk 0:04:49.7]} 9... exf5 {[%clk
0:04:29.6]} 10. e5 {[%clk 0:04:48.8]} 10... Ng8 {[%clk 0:04:26.6]} 11. Qxf5
{[%clk 0:04:47.8]} 11... Qe7 {[%clk 0:04:22.3]} 12. Nd5 {[%clk 0:04:47]} 12...
Qe6 {[%clk 0:04:20.3]} 13. Nxc7+ {[%clk 0:04:46]} 1-0

[Event "Live Chess"]
[Site "Chess.com"]
[Date "2024.06.01"]
[Round "-"]
[White "Stanbad1"]
[Black "road2gm5000"]
[Result "1-0"]
[WhiteElo "2640"]
[BlackElo "1080"]
[TimeControl "300"]
[EndTime "14:26:17 PDT"]
[Termination "Stanbad1 won by resignation"]

1. d4 {[%clk 0:04:56.6]} 1... d5 {[%clk 0:04:58.3]} 2. c4 {[%clk 0:04:54.1]}
2... e6 {[%clk 0:04:53.6]} 3. Nc3 {[%clk 0:04:53.2]} 3... Nf6 {[%clk 0:04:51.6]}
4. cxd5 {[%clk 0:04:52.5]} 4... Nxd5 {[%clk 0:04:49.3]} 5. e4 {[%clk 0:04:51.1]}
5... Nxc3 {[%clk 0:04:48.1]} 6. bxc3 {[%clk 0:04:51]} 6... Nc6 {[%clk
0:04:43.8]} 7. Nf3 {[%clk 0:04:49.1]} 7... Be7 {[%clk 0:04:39.4]} 8. Bd3 {[%clk
0:04:46.4]} 8... O-O {[%clk 0:04:36.5]} 9. O-O {[%clk 0:04:44]} 9... h6 {[%clk
0:04:34.8]} 10. e5 {[%clk 0:04:41.7]} 10... b6 {[%clk 0:04:30.5]} 11. Qe2 {[%clk
0:04:39.3]} 11... Bb7 {[%clk 0:04:29.3]} 12. a4 {[%clk 0:04:35.3]} 12... a5
{[%clk 0:04:26.6]} 13. Be3 {[%clk 0:04:32.7]} 13... Qd5 {[%clk 0:04:21]} 14.
Rfb1 {[%clk 0:04:22.3]} 14... Ba6 {[%clk 0:04:04.7]} 15. Bxa6 {[%clk 0:04:18.5]}
1-0

[Event "Live Chess"]
[Site "Chess.com"]
[Date "2024.06.01"]
[Round "-"]
[White "PughmanChess"]
[Black "Dhaydon19"]
[Result "0-1"]
[WhiteElo "1379"]
[BlackElo "2678"]
[TimeControl "300"]
[EndTime "14:26:17 PDT"]
[Termination "Dhaydon19 won by resignation"]

1. e4 {[%clk 0:04:57]} 1... c6 {[%clk 0:04:59.7]} 2. d4 {[%clk 0:04:55.2]} 2...
d5 {[%clk 0:04:58.6]} 3. e5 {[%clk 0:04:51.8]} 3... c5 {[%clk 0:04:57.6]} 4.
dxc5 {[%clk 0:04:50.1]} 4... Nc6 {[%clk 0:04:56.5]} 5. Nf3 {[%clk 0:04:46.2]}
5... Bg4 {[%clk 0:04:55.4]} 6. h3 {[%clk 0:04:43.9]} 6... Bxf3 {[%clk 0:04:55]}
7. Qxf3 {[%clk 0:04:42.6]} 7... e6 {[%clk 0:04:54.8]} 8. Bf4 {[%clk 0:04:40.4]}
8... Bxc5 {[%clk 0:04:53.7]} 9. Bb5 {[%clk 0:04:38.3]} 9... Ne7 {[%clk
0:04:48.5]} 10. O-O {[%clk 0:04:32.3]} 10... O-O {[%clk 0:04:47]} 11. Nd2 {[%clk
0:04:26.8]} 11... Nd4 {[%clk 0:04:44.7]} 12. Qg3 {[%clk 0:04:22.7]} 12... Nxb5
{[%clk 0:04:40.6]} 13. Bh6 {[%clk 0:04:20.4]} 13... Nf5 {[%clk 0:04:39.3]} 0-1

[Event "Live Chess"]
[Site "Chess.com"]
[Date "2024.06.01"]
[Round "-"]
[White "jimwad"]
[Black "bez2104"]
[Result "1/2-1/2"]
[WhiteElo "1286"]
[BlackElo "1561"]
[TimeControl "300"]
[EndTime "14:26:23 PDT"]
[Termination "Game drawn - timeout vs insufficient material"]

1. d4 {[%clk 0:04:57.7]} 1... Nf6 {[%clk 0:04:58.3]} 2. c4 {[%clk 0:04:57.1]}
2... d6 {[%clk 0:04:57.6]} 3. Nc3 {[%clk 0:04:55.8]} 3... g6 {[%clk 0:04:55]} 4.
g3 {[%clk 0:04:54.1]} 4... Bg7 {[%clk 0:04:54]} 5. Bg2 {[%clk 0:04:52.4]} 5...
O-O {[%clk 0:04:53]} 6. e3 {[%clk 0:04:50.8]} 6... c6 {[%clk 0:04:52.1]} 7. Nge2
{[%clk 0:04:49.9]} 7... Bg4 {[%clk 0:04:50.1]} 8. O-O {[%clk 0:04:48.6]} 8... e5
{[%clk 0:04:44.1]} 9. Qb3 {[%clk 0:04:43.7]} 9... Bxe2 {[%clk 0:04:40.5]} 10.
Nxe2 {[%clk 0:04:42.4]} 10... Qc7 {[%clk 0:04:39.6]} 11. dxe5 {[%clk 0:04:38.6]}
11... dxe5 {[%clk 0:04:38]} 12. Rd1 {[%clk 0:04:26.7]} 12... Nbd7 {[%clk
0:04:35.3]} 13. Qc3 {[%clk 0:04:20.8]} 13... Rad8 {[%clk 0:04:30.3]} 14. b3
{[%clk 0:04:19.7]} 14... Nh5 {[%clk 0:04:01.9]} 15. e4 {[%clk 0:04:12.7]} 15...
Nb6 {[%clk 0:03:35.7]} 16. Bb2 {[%clk 0:04:08.8]} 16... f5 {[%clk 0:03:25.5]}
17. Qc2 {[%clk 0:03:55.5]} 17... f4 {[%clk 0:03:09.7]} 18. gxf4 {[%clk 0:03:46]}
18... Nxf4 {[%clk 0:03:08.1]} 19. Nxf4 {[%clk 0:03:43.7]} 19... exf4 {[%clk
0:03:06.8]} 20. Bxg7 {[%clk 0:03:42.3]} 20... Qxg7 {[%clk 0:03:05.4]} 21. Rac1
{[%clk 0:03:32.5]} 21... Rxd1+ {[%clk 0:02:54.8]} 22. Rxd1 {[%clk 0:03:31.4]}
22... f3 {[%clk 0:02:53.6]} 23. Bh3 {[%clk 0:03:26.7]} 23... Qe5 {[%clk
0:02:23.7]} 24. Qd3 {[%clk 0:03:20.8]} 24... Rf4 {[%clk 0:01:54.1]} 25. Qd8+
{[%clk 0:03:15.5]} 25... Kg7 {[%clk 0:01:52.3]} 26. Qd4 {[%clk 0:02:35.1]} 26...
Rxe4 {[%clk 0:01:33.3]} 27. Qxe5+ {[%clk 0:02:33.9]} 27... Rxe5 {[%clk
0:01:32.2]} 28. Bg4 {[%clk 0:02:27.5]} 28... Re2 {[%clk 0:01:19.9]} 29. Bxf3
{[%clk 0:02:25.3]} 29... Rxa2 {[%clk 0:01:18.6]} 30. Re1 {[%clk 0:02:19.6]}
30... Kf6 {[%clk 0:01:12.5]} 31. Bd1 {[%clk 0:02:17.2]} 31... Nd7 {[%clk
0:01:07.2]} 32. h3 {[%clk 0:02:11.3]} 32... Ne5 {[%clk 0:01:05.6]} 33. f4 {[%clk
0:02:07.5]} 33... Nd3 {[%clk 0:01:01.4]} 34. Re3 {[%clk 0:02:01.6]} 34... Nxf4
{[%clk 0:00:59.3]} 35. Rf3 {[%clk 0:01:59.6]} 35... g5 {[%clk 0:00:57.1]} 36. h4
{[%clk 0:01:57.3]} 36... Rg2+ {[%clk 0:00:54.7]} 37. Kf1 {[%clk 0:01:55.1]}
37... Rd2 {[%clk 0:00:49.4]} 38. hxg5+ {[%clk 0:01:50.5]} 38... Kxg5 {[%clk
0:00:46.4]} 39. Rg3+ {[%clk 0:01:48.7]} 39... Kf5 {[%clk 0:00:43.3]} 40. Bg4+
{[%clk 0:01:47.4]} 40... Ke4 {[%clk 0:00:41.6]} 41. Bf3+ {[%clk 0:01:45.5]}
41... Kf5 {[%clk 0:00:38.4]} 42. Bg4+ {[%clk 0:01:43.8]} 42... Ke5 {[%clk
0:00:33.6]} 43. Re3+ {[%clk 0:01:41.5]} 43... Kd4 {[%clk 0:00:31.6]} 44. Rf3
{[%clk 0:01:34.2]} 44... Nd3 {[%clk 0:00:27.5]} 45. Bf5 {[%clk 0:01:25.3]} 45...
Rd1+ {[%clk 0:00:24.2]} 46. Ke2 {[%clk 0:01:22.7]} 46... Nb2 {[%clk 0:00:22.8]}
47. Rf4+ {[%clk 0:01:18]} 47... Kc3 {[%clk 0:00:21]} 48. Rf3+ {[%clk 0:01:15.5]}
48... Kb4 {[%clk 0:00:19.3]} 49. Bxh7 {[%clk 0:01:09.1]} 49... Rh1 {[%clk
0:00:17.5]} 50. Be4 {[%clk 0:01:06.5]} 50... Rh2+ {[%clk 0:00:16.4]} 51. Ke3
{[%clk 0:01:05.5]} 51... Nd1+ {[%clk 0:00:14.5]} 52. Kf4 {[%clk 0:01:03.3]}
52... Nc3 {[%clk 0:00:13.4]} 53. Bf5 {[%clk 0:00:53.1]} 53... Rh4+ {[%clk
0:00:12]} 54. Kg5 {[%clk 0:00:51.2]} 54... Rd4 {[%clk 0:00:10.3]} 55. Bc8 {[%clk
0:00:49.5]} 55... b6 {[%clk 0:00:08.3]} 56. Bb7 {[%clk 0:00:46.6]} 56... Kxb3
{[%clk 0:00:05.9]} 57. Bxc6 {[%clk 0:00:44.7]} 57... Kxc4 {[%clk 0:00:03.8]} 58.
Bb7 {[%clk 0:00:40.5]} 58... a5 {[%clk 0:00:02.1]} 59. Rf4 {[%clk 0:00:37.4]}
59... Nd5 {[%clk 0:00:00.8]} 60. Rxd4+ {[%clk 0:00:36]} 60... Kxd4 {[%clk
0:00:00.1]} 61. Bxd5 {[%clk 0:00:34.7]} 1/2-1/2

[Event "Live Chess"]
[Site "Chess.com"]
[Date "2024.06.01"]
[Round "-"]
[White "dhairyapandyauk"]
[Black "f4nomore"]
[Result "0-1"]
[WhiteElo "1676"]
[BlackElo "1244"]
[TimeControl "300"]
[EndTime "14:26:32 PDT"]
[Termination "f4nomore won by resignation"]

1. e4 {[%clk 0:04:54.5]} 1... g6 {[%clk 0:04:59.9]} 2. d4 {[%clk 0:04:52.6]}
2... Bg7 {[%clk 0:04:59.8]} 3. e5 {[%clk 0:04:51.6]} 3... d6 {[%clk 0:04:58.2]}
4. f4 {[%clk 0:04:50.7]} 4... dxe5 {[%clk 0:04:56.6]} 5. fxe5 {[%clk 0:04:49.8]}
5... Nc6 {[%clk 0:04:53.7]} 6. Be3 {[%clk 0:04:45.7]} 6... e6 {[%clk 0:04:49.8]}
7. Bb5 {[%clk 0:04:43.4]} 7... Bd7 {[%clk 0:04:47.5]} 8. Qf3 {[%clk 0:04:36.7]}
8... Nge7 {[%clk 0:04:43.6]} 9. c4 {[%clk 0:04:32]} 9... O-O {[%clk 0:04:40.9]}
10. d5 {[%clk 0:04:30.1]} 10... Nxe5 {[%clk 0:04:38.5]} 11. Qe2 {[%clk
0:04:18.2]} 11... exd5 {[%clk 0:04:28]} 12. Bxd7 {[%clk 0:04:15.9]} 12... Qxd7
{[%clk 0:04:22.4]} 13. b3 {[%clk 0:03:59.8]} 13... Nxc4 {[%clk 0:04:16]} 14.
bxc4 {[%clk 0:03:56.2]} 14... Bxa1 {[%clk 0:04:12.7]} 15. Bh6 {[%clk 0:03:44.6]}
15... Bg7 {[%clk 0:04:10.8]} 16. Bxg7 {[%clk 0:03:41.6]} 16... Kxg7 {[%clk
0:04:08.3]} 17. Qb2+ {[%clk 0:03:39.7]} 17... f6 {[%clk 0:04:05.1]} 18. Qxb7
{[%clk 0:03:37.2]} 18... Qe6+ {[%clk 0:03:56.6]} 19. Ne2 {[%clk 0:03:30.3]}
19... Qf5 {[%clk 0:03:48.6]} 20. Nbc3 {[%clk 0:03:21.1]} 20... Rab8 {[%clk
0:03:44.3]} 21. Qxc7 {[%clk 0:03:07.7]} 21... Rb1+ {[%clk 0:03:20.8]} 22. Nxb1
{[%clk 0:03:04.4]} 22... Qxb1+ {[%clk 0:03:18.8]} 23. Kf2 {[%clk 0:02:59.3]}
23... Qxh1 {[%clk 0:03:16.1]} 24. Qxe7+ {[%clk 0:02:56.9]} 24... Rf7 {[%clk
0:03:14.6]} 25. cxd5 {[%clk 0:02:45.6]} 25... Qxh2 {[%clk 0:03:12.3]} 26. d6
{[%clk 0:02:43.3]} 26... Rxe7 {[%clk 0:03:07.1]} 27. dxe7 {[%clk 0:02:42]} 27...
Kf7 {[%clk 0:03:06]} 28. Nd4 {[%clk 0:02:34.3]} 28... Kxe7 {[%clk 0:03:01.6]}
29. Nc6+ {[%clk 0:02:33.3]} 29... Kd6 {[%clk 0:02:59.2]} 30. Nxa7 {[%clk
0:02:32.3]} 30... Qf4+ {[%clk 0:02:56.6]} 31. Ke2 {[%clk 0:02:28.8]} 31... Qe4+
{[%clk 0:02:53.4]} 32. Kf2 {[%clk 0:02:27.1]} 32... Qd4+ {[%clk 0:02:52]} 33.
Kg3 {[%clk 0:02:22.5]} 33... Qxa7 {[%clk 0:02:50.6]} 34. Kh4 {[%clk 0:02:21.6]}
34... Qxa2 {[%clk 0:02:49]} 35. g3 {[%clk 0:02:21.2]} 35... g5+ {[%clk
0:02:45.2]} 36. Kh5 {[%clk 0:02:19.6]} 36... Qh2+ {[%clk 0:02:43.6]} 37. Kg4
{[%clk 0:02:17.5]} 37... h5+ {[%clk 0:02:37.9]} 38. Kf5 {[%clk 0:02:15.9]} 38...
Qf2+ {[%clk 0:02:33]} 39. Kg6 {[%clk 0:02:13.5]} 39... Qxg3 {[%clk 0:02:31.2]}
40. Kxh5 {[%clk 0:02:12.2]} 40... g4 {[%clk 0:02:28.7]} 41. Kg6 {[%clk
0:02:10.1]} 41... Ke5 {[%clk 0:02:26]} 42. Kh5 {[%clk 0:02:08.5]} 42... f5
{[%clk 0:02:24.9]} 43. Kg5 {[%clk 0:02:07.3]} 43... f4 {[%clk 0:02:23.1]} 44.
Kh5 {[%clk 0:02:05.7]} 44... f3 {[%clk 0:02:21.5]} 45. Kg5 {[%clk 0:02:04.6]}
45... f2 {[%clk 0:02:20.4]} 46. Kh6 {[%clk 0:02:02.4]} 46... f1=Q {[%clk
0:02:16.7]} 0-1

[Event "Live Chess"]
[Site "Chess.com"]
[Date "2024.06.01"]
[Round "-"]
[White "NeilDruggan73"]
[Black "Zhevzh1k7"]
[Result "1-0"]
[WhiteElo "1749"]
[BlackElo "1105"]
[TimeControl "300"]
[EndTime "14:26:55 PDT"]
[Termination "NeilDruggan73 won by resignation"]

1. d4 {[%clk 0:04:57.2]} 1... Nf6 {[%clk 0:04:57.4]} 2. Bg5 {[%clk 0:04:54.7]}
2... e6 {[%clk 0:04:52.8]} 3. e4 {[%clk 0:04:52.1]} 3... h6 {[%clk 0:04:49.7]}
4. Bxf6 {[%clk 0:04:49.3]} 4... Qxf6 {[%clk 0:04:48.3]} 5. c3 {[%clk 0:04:48.6]}
5... Nc6 {[%clk 0:04:44]} 6. Nf3 {[%clk 0:04:46.4]} 6... d5 {[%clk 0:04:41.8]}
7. Nbd2 {[%clk 0:04:38.6]} 7... Be7 {[%clk 0:04:37.1]} 8. Bd3 {[%clk 0:04:34.6]}
8... Bd7 {[%clk 0:04:34.8]} 9. O-O {[%clk 0:04:31.9]} 9... O-O {[%clk
0:04:32.3]} 10. e5 {[%clk 0:04:30]} 10... Qf4 {[%clk 0:04:25.1]} 11. g3 {[%clk
0:04:25.4]} 11... Qg4 {[%clk 0:04:20.8]} 12. Kg2 {[%clk 0:04:24.9]} 12... Bg5
{[%clk 0:04:15.3]} 13. h3 {[%clk 0:04:23.2]} 13... Qh5 {[%clk 0:04:07.1]} 14. g4
{[%clk 0:04:18.7]} 14... Qxh3+ {[%clk 0:03:51.8]} 15. Kxh3 {[%clk 0:04:16.5]}
15... Bxd2 {[%clk 0:03:49.5]} 1-0

[Event "Live Chess"]
[Site "Chess.com"]
[Date "2024.06.01"]
[Round "-"]
[White "FMOlexandrProhorov"]
[Black "Eva3337"]
[Result "1-0"]
[WhiteElo "2338"]
[BlackElo "1165"]
[TimeControl "300"]
[EndTime "14:27:26 PDT"]
[Termination "FMOlexandrProhorov won by resignation"]

1. e4 {[%clk 0:04:57.5]} 1... e5 {[%clk 0:04:54.1]} 2. Nf3 {[%clk 0:04:56.3]}
2... Nc6 {[%clk 0:04:52.6]} 3. d4 {[%clk 0:04:55.9]} 3... d6 {[%clk 0:04:51.2]}
4. Bc4 {[%clk 0:04:55.6]} 4... Be6 {[%clk 0:04:41.6]} 5. d5 {[%clk 0:04:52.3]}
5... Na5 {[%clk 0:04:36.3]} 6. dxe6 {[%clk 0:04:46.3]} 6... Nxc4 {[%clk
0:04:32.3]} 7. exf7+ {[%clk 0:04:46.2]} 7... Kxf7 {[%clk 0:04:30.6]} 8. Qd5+
{[%clk 0:04:44.7]} 8... Ke8 {[%clk 0:04:19.8]} 9. Qxc4 {[%clk 0:04:43.1]} 9...
Nf6 {[%clk 0:04:03.2]} 10. Nc3 {[%clk 0:04:27.9]} 10... Be7 {[%clk 0:04:01.7]}
11. Ng5 {[%clk 0:04:25.8]} 1-0

[Event "Live Chess"]
[Site "Chess.com"]
[Date "2024.06.01"]
[Round "-"]
[White "booktrunk"]
[Black "Dhaydon19"]
[Result "0-1"]
[WhiteElo "1410"]
[BlackElo "2678"]
[TimeControl "300"]
[EndTime "14:27:36 PDT"]
[Termination "Dhaydon19 won by resignation"]

1. d4 {[%clk 0:04:46]} 1... d5 {[%clk 0:04:53.1]} 2. Nc3 {[%clk 0:04:44.9]} 2...
Nf6 {[%clk 0:04:44.7]} 3. Bf4 {[%clk 0:04:44.3]} 3... e6 {[%clk 0:04:44.2]} 4.
Nb5 {[%clk 0:04:42.9]} 4... Bd6 {[%clk 0:04:43.5]} 5. Nxd6+ {[%clk 0:04:41.5]}
5... cxd6 {[%clk 0:04:43.2]} 6. e3 {[%clk 0:04:37.2]} 6... Nc6 {[%clk
0:04:42.7]} 7. Qf3 {[%clk 0:04:31.6]} 7... h6 {[%clk 0:04:40.5]} 8. h4 {[%clk
0:04:29.7]} 8... e5 {[%clk 0:04:39.3]} 9. dxe5 {[%clk 0:04:27.2]} 9... dxe5
{[%clk 0:04:38.9]} 10. Bg3 {[%clk 0:04:25.2]} 10... Bg4 {[%clk 0:04:37]} 11.
Qxg4 {[%clk 0:04:12]} 0-1